[Event "Dutch Open 2022"]
[Site "Dieren"]
[Date "2022.08.03"]
[Round "8.8"]
[White "Van Baar, Esper"]
[Black "Stillger, Bernhard"]
[Result "0-1"]
[ECO "C08"]
[WhiteElo "2281"]
[BlackElo "2245"]
[Annotator "TA"]
[PlyCount "70"]
[EventDate "2022.07.14"]
[EventType "swiss"]
[EventCountry "NED"]
[SourceTitle "playchess.com"]
[Source "ChessBase"]
[SourceQuality "1"]
[TimeControl "40/5400+30:1800+30"]

{[%evp 16,69,25,0,0,-9,-14,0,7,0,0,-27,-23,-7,-12,-45,-4,-62,-45,-54,-15,-91,-57,-58,-57,-43,-34,-111,-116,-114,-104,-158,-160,-220,-162,-328,-412,-1409,-1377,-1260,-1045,-1201,-532,-517,-514,-2220,-2040,-1196,-502,-807,-799,-29995,-29996,-29996,-29997,-29999]} 1. e4 {[%emt 0:00:54]} e6 {[%emt 0:00:04]} 2. d4 {[%emt 0:00:09]} d5 {[%emt 0:00:03]} 3. Nd2 {[%emt 0:00:07]} c5 {[%emt 0:00:05]} 4. Ngf3 {[%emt 0:00:05]} Nc6 {[%emt 0:00:09]} 5. exd5 {[%emt 0:10:22]} exd5 {[%emt 0:00:06]} 6. Be2 {[%emt 0:05:10]} Nf6 {[%emt 0:05:48]} 7. O-O {[%emt 0:00:28]} Be7 {[%emt 0:06:54][%cal Bf8e7,Be7c5,Bc5b6][%mdl 32]} 8. dxc5 {[%emt 0:00:08]} Bxc5 {[%emt 0:00:07]} 9. Nb3 {[%emt 0:00:59]} Bb6 {[%emt 0:02:22] C08: French Tarrasch: 3...c5 4 exd5 exd5 sidelines.} 10. Bg5 {[%emt 0:04:22]} O-O {[%emt 0:01:32]} 11. c3 {[%emt 0:00:38]} Be6 {[%emt 0:01:54] The position is equal.} 12. Nbd4 {[%emt 0:07:05]} h6 {[%emt 0:00:44] [#] White must now prevent ...Nxd4.} 13. Bh4 {[%emt 0:01:23]} g5 {[%emt 0:01:01] ...Nxd4 is the strong threat.} 14. Bg3 {[%emt 0:18:17]} Ne4 {[%emt 0:04:46]} 15. Nxe6 {[%emt 0:05:08]} fxe6 {[%emt 0:00:22]} 16. Bd3 {[%emt 0:01:08]} ({White should try} 16. Qc2 $11) 16... Nxg3 $15 {[%emt 0:05:16] Black is more active.} 17. hxg3 {[%emt 0:00:06] [#]} Qc7 $146 {[%emt 0:05:44]} (17... e5 $5 {[%cal Re5e4]} 18. Bc2 e4 $15) ({Predecessor:} 17... e5 18. Bc2 Qd6 19. Nh2 Kg7 20. Qh5 e4 21. Rad1 Rae8 22. Ng4 Ne5 23. Bxe4 Nxg4 24. Qxg4 {1-0 (33) Schulz,P (2074)-Helmbold,I (2022) Germany 2011}) 18. Nd4 {[%emt 0:12:59]} (18. Kh1 $11) 18... Nxd4 {[%emt 0:13:09]} (18... Rf6 {is interesting.} 19. Bb5 Raf8 20. Bxc6 bxc6 21. g4 c5) 19. cxd4 {[%emt 0:00:05]} Qg7 {[%emt 0:00:39]} (19... Bxd4 {seems wilder.} 20. Bh7+ Kxh7 21. Qxd4 Qb6) 20. Qg4 $1 {[%emt 0:01:36]} Rae8 {[%emt 0:11:01]} 21. Rae1 {[%emt 0:00:07] Black keeps a firm grip on the game.} ({But not} 21. Bb5 h5 22. Qxh5 Re7 $17) ({Better is} 21. Rad1 $1 $15) 21... Qxd4 $17 {[%emt 0:02:37]} 22. Qe2 {[%emt 0:03:18]} Qg7 {[%emt 0:04:11]} 23. Rd1 {[%emt 0:00:46]} (23. Qh5 $142) 23... Rf6 {[%emt 0:01:19]} 24. Rd2 {[%emt 0:02:45]} (24. Qh5 $17 {was called for.} Ref8 25. Rd2) 24... Ref8 {[%emt 0:03:14]} 25. Qg4 $2 {[%emt 0:00:54]} (25. Qh5) 25... h5 $19 {[%emt 0:08:29]} 26. Qxh5 {[%emt 0:08:00]} (26. Qb4 $142) 26... Rh6 {[%emt 0:01:04]} 27. Qg4 {[%emt 0:00:07]} Kf7 {[%emt 0:04:39][%cal Bg8f7,Bf7g7,Bg7f8][%mdl 32] [#] Threatens to win with ...Qh8.} 28. Bf5 {[%emt 0:09:37]} Qf6 {[%emt 0:07:47]} (28... Rfh8 $142 {[%csl Gh8][%cal Rh6h1]} 29. Bxe6+ Ke7) 29. Bxe6+ {[%emt 0:00:34]} Qxe6 {[%emt 0:00:02]} 30. Qf3+ {[%emt 0:06:27]} (30. Qxe6+ $142 Kxe6 31. Rfd1) 30... Kg7 {[%emt 0:00:37] ( -> ...Rfh8)} 31. Qc3+ {[%emt 0:01:03]} Qf6 {[%emt 0:02:41]} (31... Rff6 $142 32. Rc2 Qe8) 32. Rxd5 {[%emt 0:01:11]} (32. Qxf6+ $142 Rhxf6 33. g4) 32... Qxc3 {[%emt 0:00:24]} 33. bxc3 {[%emt 0:00:07]} Rfh8 {[%emt 0:00:14][%csl Gh8][%cal Rh6h1] Black mates.} 34. Rd7+ {[%emt 0:00:19]} Kf8 {[%emt 0:00:09][%csl Gh8][%cal Rh6h1]} 35. Re1 {[%emt 0:00:32]} Rh1# {[%emt 0:08:47] Weighted Error Value: White=0.96/Black=0.33} 0-1

[Event "Dutch Open 2022"]
[Site "Dieren"]
[Date "2022.08.03"]
[Round "8.9"]
[White "Kumar, Prajit Sai"]
[Black "Baselmans, Luuk"]
[Result "0-1"]
[ECO "A47"]
[WhiteElo "2040"]
[BlackElo "2256"]
[Annotator "NA RC"]
[PlyCount "74"]
[EventDate "2022.07.14"]
[EventType "swiss"]
[EventCountry "NED"]
[SourceTitle "playchess.com"]
[Source "ChessBase"]
[SourceQuality "1"]
[TimeControl "40/5400+30:1800+30"]

1. d4 {[%emt 0:00:02]} Nf6 {[%emt 0:00:10]} 2. Nf3 {[%emt 0:00:05]} e6 {[%emt 0:00:06]} 3. Bf4 {[%emt 0:00:04]} b6 {[%emt 0:00:29]} 4. e3 {[%emt 0:00:07]} Bb7 {[%emt 0:00:06]} 5. Bd3 {[%emt 0:00:17]} d6 {[%emt 0:00:33]} 6. h3 {[%emt 0:00:39]} Nbd7 {[%emt 0:00:26]} 7. Nbd2 {[%emt 0:00:23]} Qe7 {[%emt 0:00:40]} 8. e4 {[%emt 0:00:47]} g6 {[%emt 0:04:38]} 9. Qe2 {[%emt 0:00:30]} e5 {[%emt 0:00:16]} 10. dxe5 {[%emt 0:00:44]} dxe5 {[%emt 0:00:10]} 11. Bh2 {[%emt 0:02:36]} Bg7 {[%emt 0:00:31]} 12. c3 {[%emt 0:00:26]} O-O {[%emt 0:00:58]} 13. O-O {[%emt 0:00:22]} a6 {[%emt 0:05:46]} 14. Rfe1 {[%emt 0:00:29]} Nh5 {[%emt 0:00:55]} 15. Nc4 {[%emt 0:08:08]} Rad8 {[%emt 0:04:04]} 16. Qc2 {[%emt 0:01:50]} Nf4 {[%emt 0:03:13]} 17. Bf1 {[%emt 0:02:50]} f6 {[%emt 0:02:24]} 18. b4 {[%emt 0:03:01]} Bh6 {[%emt 0:02:38]} 19. Ne3 {[%emt 0:02:38]} Kh8 {[%emt 0:01:36]} 20. Rad1 {[%emt 0:01:12]} a5 {[%emt 0:06:36]} 21. a3 {[%emt 0:03:21]} axb4 {[%emt 0:01:28]} 22. cxb4 {[%emt 0:00:56]} c5 {[%emt 0:00:55]} 23. b5 {[%emt 0:00:29]} Ne6 {[%emt 0:01:09]} 24. Nd5 {[%emt 0:02:47]} Bxd5 {[%emt 0:01:06]} 25. exd5 {[%emt 0:00:06]} Nd4 {[%emt 0:04:56]} 26. Nxd4 {[%emt 0:01:11]} cxd4 {[%emt 0:00:06]} 27. Rxd4 {[%emt 0:01:28]} Qxa3 {[%emt 0:00:18]} 28. Ra4 {[%emt 0:03:22]} Qc5 {[%emt 0:03:36]} 29. Rc4 {[%emt 0:00:07]} Qxd5 {[%emt 0:01:11]} 30. Rd1 {[%emt 0:00:07]} Qa8 {[%emt 0:03:58]} 31. Rc6 {[%emt 0:00:49]} Bg7 {[%emt 0:05:12]} 32. Rdd6 {[%emt 0:04:46]} Rfe8 {[%emt 0:03:02]} 33. Qd1 {[%emt 0:04:15]} Nc5 {[%emt 0:09:58]} 34. Rxb6 {[%emt 0:00:11]} Ne6 {[%emt 0:00:25]} 35. Ra6 {[%emt 0:11:44]} Qb8 {[%emt 0:00:39]} 36. Bc4 {[%emt 0:01:58]} Nc5 {[%emt 0:05:22]} 37. Rab6 {[%emt 0:03:05]} Qxb6 {[%emt 0:00:38]} 0-1

[Event "Dutch Open 2022"]
[Site "Dieren"]
[Date "2022.08.03"]
[Round "8.10"]
[White "Zwirs, Jasper"]
[Black "Pijkeren, Jan"]
[Result "0-1"]
[ECO "B42"]
[WhiteElo "2105"]
[BlackElo "2196"]
[Annotator "TA"]
[PlyCount "158"]
[EventDate "2022.07.14"]
[EventType "swiss"]
[EventCountry "NED"]
[SourceTitle "playchess.com"]
[Source "ChessBase"]
[SourceQuality "1"]
[TimeControl "40/5400+30:1800+30"]

{[%evp 14,158,51,40,45,41,51,33,50,57,58,54,80,71,62,76,79,68,75,64,64,56,69,104,142,128,213,202,210,200,145,188,465,508,496,461,675,89,80,92,116,0,0,-44,-46,-56,-38,-52,-44,-42,-44,-62,-41,-226,-224,-224,-228,-226,-219,-219,-220,-219,-214,-203,-213,-246,-249,-237,-241,-233,-238,-229,-221,-224,-214,-431,-433,-666,-638,-776,-775,-759,-735,-724,-619,-611,-602,-6146,0,0,0,-5736,-5809,-6235,-5585,-5097,-3885,-2420,-2152,-1699,-1661,-1529,-1036,-4682,-2701,-29958,-12847,-29964,-29967,-29973,-29972,-29971,-29972,-29973,-29970,-29978,-29972,-29974,-29973,-29973,-29972,-29972,-29973,-29973,-29974,-29979,-29980,-29980,-29981,-29981,-29976,-29976,-29977,-29977,-29978,-29978,-29979,-29979,-29980,-29981,-29982,-29983,-29984,-29984,-29982,-29981,-29981]} 1. e4 {[%emt 0:00:03]} c5 {[%emt 0:00:06]} 2. Nf3 {[%emt 0:00:04]} e6 {[%emt 0:00:03]} 3. d4 {[%emt 0:00:05]} cxd4 {[%emt 0:00:04]} 4. Nxd4 {[%emt 0:00:04]} a6 {[%emt 0:00:03]} 5. Bd3 {[%emt 0:00:24]} Bc5 {[%emt 0:00:09]} 6. Nb3 {[%emt 0:00:21]} Be7 {[%emt 0:00:04]} 7. O-O {[%emt 0:00:06]} d6 {[%emt 0:00:14]} 8. Qg4 {[%emt 0:00:36]} g6 {[%emt 0:00:06] B42: Sicilian: Kan Variation: 5 Bd3.} 9. Qe2 {[%emt 0:00:22]} Nd7 {[%emt 0:00:12]} 10. a4 {[%emt 0:00:18]} b6 {[%emt 0:01:36] White is slightly better.} 11. Na3 {[%emt 0:00:52]} Qc7 {[%emt 0:09:20]} 12. Nc4 {[%emt 0:01:50]} Bb7 {[%emt 0:04:18]} 13. a5 {[%emt 0:00:39]} b5 {[%emt 0:01:47]} 14. Nb6 {[%emt 0:00:06]} Nxb6 {[%emt 0:11:49]} 15. axb6 {[%emt 0:00:54]} Qxb6 {[%emt 0:00:29]} 16. Be3 {[%emt 0:00:08]} Qc7 {[%emt 0:00:31]} 17. Rfc1 {[%emt 0:00:17]} Nf6 {[%emt 0:01:40]} 18. c4 {[%emt 0:02:49]} bxc4 {[%emt 0:01:10] [#]} 19. Rxc4 $146 {[%emt 0:23:51]} ({Predecessor:} 19. Bxc4 Qd7 20. Bh6 Nxe4 21. Bxa6 Rxa6 22. Rxa6 Bxa6 23. Qxa6 f5 24. Qa8+ Bd8 25. Ra1 {0-1 (58) Kilic,E (2241)-Kamer,K (2417) Antalya 2019}) 19... Qd7 {[%emt 0:01:13]} (19... Qd8 $16) 20. Rac1 $1 $18 {[%emt 0:18:46] aiming for Rc7.} Rc8 {[%emt 0:08:21] Inhibits Rc7.} 21. Rxc8+ {[%emt 0:10:33]} Bxc8 {[%emt 0:00:35]} 22. Bh6 $1 {[%emt 0:01:47] Na5 is the strong threat.} Bf8 $2 {[%emt 0:20:55]} (22... Qd8 23. e5 (23. Bxa6 Bd7 $16) 23... dxe5) 23. Bxa6 {[%emt 0:16:47]} Bxa6 {[%emt 0:00:41]} 24. Qxa6 {[%emt 0:00:37]} Ke7 {[%emt 0:13:18]} (24... Bxh6 $142 25. Rc8+ Ke7 26. Rxh8 e5) 25. Rc8 $2 {[%emt 0:06:37]} (25. Bg5 $18 {and the rest is easy.}) 25... Bg7 $16 {[%emt 0:02:01]} 26. Rxh8 {[%emt 0:03:30]} Bxh8 {[%emt 0:00:04]} 27. f3 {[%emt 0:07:28] Prevents Ng4.} ({White should try} 27. Nd4 $1 $16 {[%cal Rd4c6]} Ng4 28. Nc6+ Kf6 29. Bf8) 27... Ne8 $11 {[%emt 0:00:18]} 28. Bg5+ {[%emt 0:00:34]} Kf8 {[%emt 0:00:47]} 29. Qe2 {[%emt 0:02:17]} Qb7 {[%emt 0:07:48]} 30. Qc2 {[%emt 0:00:54]} Qb6+ {[%emt 0:00:15]} 31. Kh1 {[%emt 0:00:29]} Qb5 $40 {[%emt 0:00:37][%cal Rb5f1][%mdl 128] White needs to defend precisely.} 32. Bh6+ {[%emt 0:00:18]} Ke7 {[%emt 0:00:31][%cal Rb5f1]} 33. h3 $2 {[%emt 0:01:32]} (33. Kg1 $15) 33... Qf1+ $19 {[%emt 0:01:59]} 34. Kh2 {[%emt 0:00:01]} Be5+ {[%emt 0:00:05]} 35. f4 {[%emt 0:00:05]} Bxf4+ {[%emt 0:00:03]} 36. Bxf4 {[%emt 0:00:02]} Qxf4+ {[%emt 0:00:05][%mdl 4096] Endgame KQN-KQN} 37. Kh1 {[%emt 0:01:26]} Qe3 {[%emt 0:01:52]} 38. Nd2 {[%emt 0:00:40]} Nf6 {[%emt 0:03:29]} 39. Qc7+ {[%emt 0:00:18]} Nd7 $1 {[%emt 0:00:11]} 40. Qc2 {[%emt 0:00:48]} Nc5 {[%emt 0:06:07]} 41. b4 {[%emt 0:08:03]} Nd3 {[%emt 0:09:10]} 42. b5 {[%emt 0:11:50] [#]} Ne1 $1 {[%emt 0:10:39]} 43. Qc7+ {[%emt 0:01:04]} Kf6 {[%emt 0:00:18]} 44. Qxd6 {[%emt 0:00:16]} (44. Nf1 {was worth a try.} Qd3 45. Kg1) 44... Qf2 {[%emt 0:06:16][%csl Ge1][%cal Rf2g2]} 45. e5+ {[%emt 0:02:26]} (45. Qh2 $142 Qxd2 46. b6) 45... Kg7 {[%emt 0:05:28][%csl Ge1][%cal Rf2g2]} 46. Qc6 {[%emt 0:00:38]} Qxd2 {[%emt 0:01:32]} 47. b6 {[%emt 0:00:07]} Nd3 {[%emt 0:00:36]} 48. b7 {[%emt 0:01:11]} Qe1+ {[%emt 0:00:02]} 49. Kh2 {[%emt 0:00:07]} Qxe5+ {[%emt 0:00:03]} 50. Kh1 {[%emt 0:02:43]} Qe1+ {[%emt 0:00:16]} 51. Kh2 {[%emt 0:00:07]} Qe5+ {[%emt 0:00:02]} 52. Kh1 $1 {[%emt 0:00:02]} Nc5 {[%emt 0:01:41]} 53. b8=Q {[%emt 0:00:36]} Qxb8 {[%emt 0:00:22]} 54. Qxc5 {[%emt 0:00:05] KQ-KQ} Qf4 {[%emt 0:01:24]} 55. Qc3+ {[%emt 0:00:15]} Qf6 {[%emt 0:00:04]} 56. Qe1 {[%emt 0:00:08]} Qd4 {[%emt 0:00:15] Hoping for ...h5.} 57. Qf1 {[%emt 0:00:40]} h5 {[%emt 0:00:10] And now ...e5 would win.} 58. Qe1 {[%emt 0:00:05]} e5 {[%emt 0:01:51][%cal Be6e5,Be5e4,Be4e3][%mdl 32] ( -> ...e4)} 59. Qf1 {[%emt 0:00:40]} Qf4 {[%emt 0:01:17]} 60. Qe2 {[%emt 0:00:23]} e4 {[%emt 0:00:19] Black mates.} 61. Kg1 {[%emt 0:01:15]} e3 {[%emt 0:00:19]} 62. Qb2+ {[%emt 0:00:05]} Qf6 {[%emt 0:01:10]} 63. Qe2 {[%emt 0:00:09]} Qd4 {[%emt 0:00:15]} 64. h4 {[%emt 0:02:58]} Qf4 {[%emt 0:01:10]} 65. Qb2+ {[%emt 0:00:15]} Kh7 {[%emt 0:00:06]} 66. Qe2 {[%emt 0:00:13]} Qg3 {[%emt 0:00:38]} 67. Qf1 {[%emt 0:00:15]} Kg8 {[%emt 0:00:27]} 68. Qe2 {[%emt 0:00:11]} Qe5 {[%emt 0:01:33]} 69. Kf1 {[%emt 0:02:17]} Qa1+ {[%emt 0:00:28]} 70. Qe1 {[%emt 0:00:02]} Qxe1+ {[%emt 0:00:22]} 71. Kxe1 {[%emt 0:00:02] KP-KP} Kg7 {[%emt 0:01:20]} 72. Ke2 {[%emt 0:00:05]} Kf6 {[%emt 0:00:02]} 73. Kxe3 {[%emt 0:00:04] K3P-KPP} Ke5 {[%emt 0:00:13]} 74. Kf3 {[%emt 0:02:26] [#]} Kf5 $1 {[%emt 0:00:20]} 75. Kg3 {[%emt 0:00:09]} Ke4 {[%emt 0:00:19]} 76. Kh3 {[%emt 0:00:10]} Kf4 {[%emt 0:00:17]} 77. g3+ {[%emt 0:01:16]} Kf3 {[%emt 0:00:06]} 78. Kh2 {[%emt 0:00:03]} Kg4 {[%emt 0:00:36]} 79. Kg2 {[%emt 0:00:04]} f5 {[%emt 0:00:23] Quite a comeback for Black.  Weighted Error Value: White=0.61/Black=0.29 (precise)} 0-1

[Event "Dutch Open 2022"]
[Site "Dieren"]
[Date "2022.08.03"]
[Round "8.11"]
[White "Labruyere, Roger"]
[Black "Op den Dries, Johan"]
[Result "0-1"]
[ECO "B01"]
[WhiteElo "2070"]
[BlackElo "2104"]
[Annotator "NA RC"]
[PlyCount "70"]
[EventDate "2022.07.14"]
[EventType "swiss"]
[EventCountry "NED"]
[SourceTitle "playchess.com"]
[Source "ChessBase"]
[SourceQuality "1"]
[TimeControl "40/5400+30:1800+30"]

1. e4 {[%emt 0:13:49]} d5 {[%emt 0:00:06]} 2. exd5 {[%emt 0:00:14]} Nf6 {[%emt 0:00:06]} 3. Be2 {[%emt 0:00:07]} Nxd5 {[%emt 0:00:05]} 4. d4 {[%emt 0:00:09]} g6 {[%emt 0:00:37]} 5. Nf3 {[%emt 0:00:18]} Bg7 {[%emt 0:00:07]} 6. O-O {[%emt 0:00:06]} O-O {[%emt 0:00:08]} 7. c4 {[%emt 0:00:08]} Nb6 {[%emt 1:32:51]} 8. h3 {[%emt 0:00:07]} Nc6 {[%emt 0:00:00]} 9. Be3 {[%emt 0:01:13]} e5 {[%emt 0:00:00]} 10. d5 {[%emt 0:00:33]} Ne7 {[%emt 0:00:00]} 11. Nc3 {[%emt 0:00:11]} Nf5 {[%emt 0:00:00]} 12. Bg5 {[%emt 0:05:28]} f6 {[%emt 0:00:00]} 13. Bc1 {[%emt 0:00:13]} Nd7 {[%emt 0:00:00]} 14. g4 {[%emt 0:12:58]} Nd6 {[%emt 0:00:00]} 15. Be3 {[%emt 0:00:25]} f5 {[%emt 0:00:00]} 16. Ng5 {[%emt 0:01:00]} f4 {[%emt 0:00:00]} 17. Ne6 {[%emt 0:00:10]} Qh4 {[%emt 0:00:00]} 18. Nxf8 {[%emt 0:01:00]} Bxf8 {[%emt 0:00:00]} 19. Bc1 {[%emt 0:03:51]} Qxh3 {[%emt 0:00:00]} 20. Qd3 {[%emt 0:03:45]} Qh4 {[%emt 0:00:00]} 21. Ne4 {[%emt 0:01:50]} Nxe4 {[%emt 0:00:00]} 22. Qxe4 {[%emt 0:00:19]} Nf6 {[%emt 0:00:00]} 23. Qh1 {[%emt 0:01:41]} Qg5 {[%emt 0:00:00]} 24. f3 {[%emt 0:01:40]} Bc5+ {[%emt 0:00:00]} 25. Kg2 {[%emt 0:01:02]} Nxg4 {[%emt 0:00:00]} 26. fxg4 {[%emt 0:02:02]} Bxg4 {[%emt 0:00:00]} 27. Rf3 {[%emt 0:08:55]} Bxf3+ {[%emt 0:00:00]} 28. Kxf3 {[%emt 0:00:38]} Re8 {[%emt 0:00:00]} 29. Bf1 {[%emt 0:17:12]} e4+ {[%emt 0:00:00]} 30. Ke2 {[%emt 0:01:02]} Qg4+ {[%emt 0:00:00]} 31. Ke1 {[%emt 0:01:32]} f3 {[%emt 0:00:00]} 32. Bh3 {[%emt 0:09:46]} f2+ {[%emt 0:00:00]} 33. Kd2 {[%emt 0:00:46]} e3+ {[%emt 0:00:00]} 34. Kc3 {[%emt 0:00:33]} Qd4+ {[%emt 0:00:00]} 35. Kb3 {[%emt 0:00:11]} Qd3+ {[%emt 0:00:00]} 0-1

[Event "Dutch Open 2022"]
[Site "Dieren"]
[Date "2022.08.03"]
[Round "8.12"]
[White "Binnendijk, Ferdinand"]
[Black "Achuthan, Dylan"]
[Result "1/2-1/2"]
[ECO "D97"]
[WhiteElo "2147"]
[BlackElo "1989"]
[Annotator "TA"]
[PlyCount "106"]
[EventDate "2022.07.14"]
[EventType "swiss"]
[EventCountry "NED"]
[SourceTitle "playchess.com"]
[Source "ChessBase"]
[SourceQuality "1"]
[TimeControl "40/5400+30:1800+30"]

{[%evp 19,106,12,19,11,15,7,16,12,50,-12,0,0,-7,0,-1,-35,-21,-31,-31,-31,-31,-29,-21,-25,-16,-25,-20,-27,-10,-35,-26,-68,-31,-27,0,0,40,40,40,40,40,41,56,57,84,85,79,78,102,53,437,59,63,6,6,7,39,9,107,107,107,121,116,0,0,0,8,-10,-10,-40,-40,-102,-58,-102,-58,-125,-125,-125,-125,-125,-125,-125,-125,-125,-125,-125,-125,-125,-125]} 1. d4 {[%emt 0:00:01]} Nf6 {[%emt 0:00:33]} 2. c4 {[%emt 0:00:05]} g6 {[%emt 0:00:05]} 3. Nc3 {[%emt 0:00:04]} d5 {[%emt 0:00:06]} 4. Nf3 {[%emt 0:00:30]} Bg7 {[%emt 0:00:28]} 5. Qb3 {[%emt 0:00:05]} dxc4 {[%emt 0:01:15]} 6. Qxc4 {[%emt 0:00:05]} O-O {[%emt 0:00:16]} 7. e4 {[%emt 0:01:18]} a6 {[%emt 0:00:37]} 8. Be2 {[%emt 0:02:12]} b5 {[%emt 0:00:29]} 9. Qb3 {[%emt 0:05:13]} c5 {[%emt 0:00:15]} 10. dxc5 {[%emt 0:00:52]} Be6 {[%emt 0:00:08]} 11. Qc2 {[%emt 0:01:42] D97: Grünfeld: Russian System: 7 e4, replies other than 7...Bg4.} Nbd7 {[%emt 0:00:26]} 12. Be3 {[%emt 0:02:42] next Rd1 is good for White.} Rc8 $1 {[%emt 0:00:43][%cal Ba8c8,Bc8c5,Bc5e5,Be5e4][%mdl 32]} 13. Rd1 {[%emt 0:04:53] The position is equal.} Qa5 $1 {[%emt 0:00:38][%mdl 4] [#] is currently scoring better than 13...b4.} 14. Ng5 $146 {[%emt 0:13:19]} (14. a3 $1 $14) ({Predecessor:} 14. a3 b4 15. axb4 Qxb4 16. Nd4 Nxc5 17. Nxe6 Nxe6 18. O-O Nxe4 19. Qxe4 Bxc3 20. Qxb4 Bxb4 21. Bxa6 {½-½ (65) Esipenko,A (2723)-Paravyan,D (2617) Chess.com INT 2022}) 14... Nxc5 $11 {[%emt 0:04:46]} 15. Bxc5 {[%emt 0:00:34]} Rxc5 {[%emt 0:00:02]} 16. Nxe6 {[%emt 0:00:07]} fxe6 {[%emt 0:00:03]} 17. Qb3 {[%emt 0:02:17]} Re5 {[%emt 0:14:07]} (17... Nd5 {keeps more tension.} 18. O-O Nf4 19. Bg4 Bxc3 20. g3 Kg7) 18. O-O {[%emt 0:10:47]} Nxe4 {[%emt 0:12:13]} 19. Nxe4 {[%emt 0:01:06]} Rxe4 {[%emt 0:00:23]} 20. Bf3 {[%emt 0:01:08]} Re5 {[%emt 0:00:43]} 21. Rd7 {[%emt 0:03:47]} Bf6 {[%emt 0:02:26]} 22. g3 {[%emt 0:04:45]} Rc8 {[%emt 0:12:04][%cal Bf8c8,Bc8c4,Bc4d4][%mdl 32]} 23. Rfd1 {[%emt 0:09:38]} Rc4 {[%emt 0:13:34]} 24. Rd8+ {[%emt 0:03:53]} Kf7 {[%emt 0:00:17]} 25. Ra8 {[%emt 0:00:19]} Re1+ {[%emt 0:02:45]} 26. Kg2 {[%emt 0:01:44][%cal Oa8a6]} Rxd1 {[%emt 0:04:01]} (26... Rb4 $5 {[%cal Rb4b3]} 27. Qc2 Rxd1 28. Bxd1 Rc4 $15) 27. Qxd1 {[%emt 0:02:24]} Rd4 {[%emt 0:00:25] Inhibits Qd7.} 28. Qc1 {[%emt 0:02:39][%mdl 1024] Strongly threatening Qc8. White has compensation.} Rd8 {[%emt 0:00:55] Against Qc8} 29. b4 {[%emt 0:02:13]} Qb6 {[%emt 0:00:50]} 30. Qh6 {[%emt 0:04:13]} Kg8 {[%emt 0:04:11]} 31. Qe3 {[%emt 0:04:20]} Qd6 {[%emt 0:10:39]} 32. Rxd8+ {[%emt 0:00:17][%mdl 64] [#] Deflection} Qxd8 {[%emt 0:00:03]} 33. Qxe6+ $16 {[%emt 0:00:06][%mdl 4096] Endgame KQB-KQB} Kg7 {[%emt 0:00:11]} 34. Bd5 {[%emt 0:09:07]} (34. Qxa6 $16 Qd7 35. Qb6) 34... a5 $2 {[%emt 0:04:14][%mdl 8192]} ({Better is} 34... Qd6 $14) 35. h4 $2 {[%emt 0:01:29]} (35. bxa5 $18 Qe8 36. g4) 35... axb4 $14 {[%emt 0:02:43]} 36. Kh3 {[%emt 0:03:09] White is more active.} ({White should try} 36. Qf7+ $1 $14 Kh6 37. Be4) 36... Qf8 $1 $11 {[%emt 0:01:00]} 37. g4 {[%emt 0:02:17][%cal Bg3g4,Bg4g5][%mdl 32]} Bc3 {[%emt 0:03:17]} 38. Kg2 {[%emt 0:02:11]} h6 {[%emt 0:05:52] [#]} (38... Bd2 $1 $11) 39. g5 $1 $16 {[%emt 0:01:14]} ({Much less strong is} 39. h5 gxh5 40. gxh5 Kh8 $14) 39... Kh7 {[%emt 0:01:43]} 40. f4 {[%emt 0:00:42]} Qg7 {[%emt 0:00:25]} 41. h5 {[%emt 0:05:26]} (41. Be4 $16 {Hoping for h5.} Qg8 42. Qxe7+ Kh8 43. Qd6 (43. gxh6 Qxa2+ 44. Kf3 Qb3 $16)) 41... gxh5 $11 {[%emt 0:02:41]} 42. Be4+ {[%emt 0:01:34]} Kh8 {[%emt 0:00:02]} 43. g6 {[%emt 0:02:28]} Qf6 {[%emt 0:00:51]} 44. Qc8+ {[%emt 0:02:44]} Kg7 {[%emt 0:00:02]} 45. Qe8 {[%emt 0:01:47]} (45. Qf5 $15) 45... Be1 {[%emt 0:03:41]} (45... Qxf4 {gets mated.} 46. Qxe7+ Kg8 47. Bd5+) 46. Bc2 {[%emt 0:04:44]} Bd2 {[%emt 0:02:14]} 47. f5 {[%emt 0:01:02]} (47. Qxb5 $15 Qxf4 48. Qf5) 47... Qg5+ $17 {[%emt 0:00:10] Black is better.} 48. Kh1 {[%emt 0:00:30] White threatens Qf7+ and mate.} Qh4+ {[%emt 0:00:51]} 49. Kg2 {[%emt 0:00:05]} Qg4+ {[%emt 0:00:13]} 50. Kf2 {[%emt 0:00:13] Qf7+ would kill now.} Qd4+ {[%emt 0:01:04]} 51. Kg2 {[%emt 0:00:52] Threatening mate with Qf7+.} Qd5+ {[%emt 0:00:47]} 52. Kf2 {[%emt 0:01:39]} Bg5 {[%emt 0:01:40] ( -> ...Qd2+)} 53. Qf7+ {[%emt 0:00:08]} Qxf7 {[%emt 0:00:41] Weighted Error Value: White=0.31/Black=0.28 (precise)} 1/2-1/2